Cogmind - Beta 15 @@@ ROGUE MODE // 2025.06.22 @ 19:59:56 Player: f3-rnm Result: Self-destructed Performance ------------- Evolutions (6) 3000 Regions Visited (6) 1200 Robots Destroyed (54) 270 Value Destroyed (1590) 1590 Prototype IDs (22) 440 Alien Tech Used (0) 0 Bonus (1650) 1650 TOTAL SCORE: 8150 Bonus ------- High Alert Combat Kills 24 Follower Combat Kills 826 Registered with UFD 300 Met Optimus in HQ 500 Cogmind --------- Core Integrity 1130/1150 Matter 11/300 Energy 540/540 System Corruption 0% Temperature Cool (16) Movement Core (2450) Ox48 Location -4/Factory Parts ------- > --- POWER (2) -------- Neutrino Core Antimatter Reactor > --- PROPULSION (2) --- (None) > --- UTILITY (11) ----- Scrap Suit Advanced Coolant Injector Huge Storage Unit Improved Weapon Cycler Improved Weapon Cycler Improved Transmission Jammer Improved Heavy Armor Plating Makeshift Hacking Suite > --- WEAPON (4) ------- Gauss Rifle Improved Heavy Machine Gun Improved Heavy Machine Gun > --- INVENTORY (25) --- Light Angular Momentum Engine Light Fission Core Light Treads Light Treads Wheel Wheel Wheel Centrium Wheel Advanced Heat Sink Improved Cooling System Advanced Coolant Injector Advanced Coolant Injector Advanced Coolant Injector Advanced Coolant Injector Energy Well (350) Graphene Brace Improved Thermal Shield Improved Hardlight Generator Improved Arc Projector Disruptor Cannon Antimatter Cannon Multitool Heavy Mace Peak State ------------ > --- POWER ------------ Neutrino Core Antimatter Reactor > --- PROPULSION ------- Overtuned Huge Scrapsphere > --- UTILITY ---------- Scrap Suit Advanced Cooling System Advanced Coolant Injector Huge Storage Unit Improved Weapon Cycler Improved Weapon Cycler Improved Transmission Jammer Improved Heavy Armor Plating Makeshift Hacking Suite > --- WEAPON ----------- Gatling Laser Gauss Rifle Improved Heavy Machine Gun Improved Heavy Machine Gun > --- INVENTORY -------- Light Angular Momentum Engine Light Fission Core Light Treads Light Treads Wheel Wheel Wheel Centrium Wheel Advanced Heat Sink Improved Cooling System Advanced Coolant Injector Advanced Coolant Injector Advanced Coolant Injector Advanced Coolant Injector Energy Well Graphene Brace Improved Thermal Shield Improved Hardlight Generator Improved Arc Projector Disruptor Cannon Antimatter Cannon Multitool Heavy Mace [Rating: 109] Favorites ----------- Power Light Ion Engine Engine Light Ion Engine Power Core Light Fission Core Reactor Antimatter Reactor Propulsion Wheel Treads Light Treads Wheel Wheel Utility Huge Storage Unit Device V3-11A's Pendant Storage Huge Storage Unit Hackware Makeshift Hacking Suite Protection Improved Heavy Armor Plating Weapon Beam Cannon Energy Gun Lightning Gun Energy Cannon Beam Cannon Ballistic Gun Gauss Rifle Ballistic Cannon Battle Cannon Launcher Grenade Launcher Build | -11 -10 -10 -7 -7 -5 -4 ------- Run | Yrd Mat Sub Rec Scr Fac Fac Slots Evolved 12 | . . . . . 10 2 Power 1 | . . . . . 1 . Propulsion . | . . . . . . . Utility 9 | . . . . . 7 2 Weapon 2 | . . . . . 2 . Parts Attached 80 | 6 2 5 1 3 58 5 Power 11 | 1 . 1 . 1 8 . Engine 4 | 1 . 1 . . 2 . Core 6 | . . . . 1 5 . Reactor 1 | . . . . . 1 . Propulsion 12 | 2 . 1 1 1 7 . Treads 3 | 2 . . 1 . . . Leg . | . . . . . . . Wheel 9 | . . 1 . 1 7 . Hover . | . . . . . . . Flight . | . . . . . . . Utility 28 | 1 1 1 . 1 21 3 Device 18 | . . 1 . . 14 3 Storage 3 | 1 1 . . 1 . . Processor . | . . . . . . . Hackware 2 | . . . . . 2 . Protection 5 | . . . . . 5 . Artifact . | . . . . . . . Weapon 29 | 2 1 2 . . 22 2 Energy Gun 8 | 1 . . . . 7 . Energy Cannon 4 | . 1 1 . . 2 . Ballistic Gun 12 | 1 . . . . 9 2 Ballistic Cannon 4 | . . 1 . . 3 . Launcher 1 | . . . . . 1 . Special Weapon . | . . . . . . . Impact Weapon . | . . . . . . . Slashing Weapon . | . . . . . . . Piercing Weapon . | . . . . . . . Special Melee Weapon . | . . . . . . . Unidentified Prototypes 5 | . . 1 . . 4 . Corrupted Parts 3 | . . . . . 3 . System Corruption 11 | . . . . . 11 . Parts Lost 42 | . . 3 . . 34 5 Power 7 | . . 1 . . 6 . Propulsion 7 | . . 1 . . 5 1 Utility 10 | . . . . . 9 1 Weapon 18 | . . 1 . . 14 3 Highest Loss Streak 17 | . . 1 . . 17 5 To Critical Strikes . | . . . . . . . Average Backups 17 | . 7 17 22 19 18 23 Power 1 | . 1 1 2 2 1 2 Propulsion 5 | . 3 6 8 6 5 5 Utility 3 | . . 2 4 4 5 9 Weapon 5 | . 3 6 7 6 4 5 Tool/Special . | . . . . . . . Unused Backups 35 | . . 1 . 7 7 20 Power 4 | . . . . 1 2 1 Propulsion 10 | . . . . 2 3 5 Utility 14 | . . . . 1 2 11 Weapon 6 | . . 1 . 3 . 2 Tool/Special 1 | . . . . . . 1 Average Slot Usage (%) 80 | . 85 91 79 60 80 83 Engine 10 | . 14 13 14 10 3 . Core 2 | . . . . 3 5 5 Treads 10 | . 28 12 8 7 . . Wheel 12 | . . 13 14 20 8 5 Device 11 | . . 12 14 3 22 30 Storage 12 | . 14 14 14 14 5 5 Hackware 1 | . . . . . 8 5 Energy Gun 1 | . 4 . . . 4 5 Energy Cannon 6 | . 9 13 . . 1 . Ballistic Gun 3 | . 14 . . . 9 15 Ballistic Cannon 5 | . . 10 14 . 2 . Peak Build Rating 109 | 6 7 14 15 17 96 109 Average Rating 24 | 3 6 11 14 12 69 104 On Entrance 21 | . 6 7 14 15 17 93 Naked Turns . | . . . . . . . Heaviest Build 205 | 12 88 90 87 205 149 151 Greatest Support 40 | 40 40 40 10 20 26 20 Greatest Overweight (x) 20 | . 2 8 8 20 11 7 Average Overweight (x) 7 | . . 7 8 8 5 7 Largest Inventory Capacity 35 | 8 25 25 25 35 35 25 Average Capacity 25 | 6 18 25 25 29 25 25 Most Carried 26 | 2 12 25 25 26 25 25 Average Carried 19 | . 7 18 25 22 21 23 Final Capacity 35 | 8 25 25 25 35 25 25 Final Carried 26 | 2 12 25 25 26 25 23 Class Distribution -------------------- 68% | Mutant 11% | Hauler-Mutant 5% | Hacker-Tank 4% | Derelict-Tank 3% | Scavenger-Gunner 3% | Scavenger-Tank Dominant Class ---------------- Mutant | -10/Materials Mutant | -10/Subcaves Mutant | -7/Recycling Mutant | -7/Scraptown Hacker-Tank | -5/Factory Scavenger-Gunner | -4/Factory Resources | -11 -10 -10 -7 -7 -5 -4 ----------- Run | Yrd Mat Sub Rec Scr Fac Fac Matter Collected 2076 | 195 182 439 20 40 1200 . Remotely . | . . . . . . . Salvage Created 2617 | . 580 71 85 . 1595 286 Parts 122 | . 34 8 2 . 67 11 Haulers Intercepted 3 | . 2 . . . 1 . Recyclers Shooed 4 | . . . 1 . 3 . Parts Field Recycled . | . . . . . . . Retrieved Matter . | . . . . . . . Parts Self-Destructed 22 | . . 22 . . . . Prevented . | . . . . . . . Kills | -11 -10 -10 -7 -7 -5 -4 ------- Run | Yrd Mat Sub Rec Scr Fac Fac Combat Hostiles Destroyed 36 | . 13 2 . . 19 2 Guns 21 | . 6 . . . 13 2 Cannons 11 | . 7 2 . . 2 . AOE 1 | . . . . . 1 . Classes Destroyed 14 | . 7 3 . . 4 . Worker 4 | . 1 . . . 3 . Builder 3 | . 1 . . . . 2 Hauler 3 | . 2 . . . 1 . Recycler 6 | . 1 . 1 . 3 1 Turret 1 | . . 1 . . . . Watcher 1 | . 1 . . . . . Swarmer 16 | . 9 1 . . 6 . Grunt 9 | . 4 . . . 5 . Sentry 1 | . . . . . 1 . Specialist 2 | . . . . . 2 . Hunter 6 | . . . . . 4 2 Programmer 1 | . . . . . 1 . Artisan 1 | . . 1 . . . . Subdweller 1 | . . 1 . . . . Best Kill Streak 6 | . 6 2 1 . 5 4 Combat Bots Only 5 | . 3 1 . . 5 2 Max Kills in Single Turn 2 | . 2 1 1 . 1 2 Gunslinging . | . . . . . . . Exploded 1 | . . . . . 1 . Melee . | . . . . . . . Uniques/NPCs Destroyed . | . . . . . . . Combat | -11 -10 -10 -7 -7 -5 -4 -------- Run | Yrd Mat Sub Rec Scr Fac Fac Hostile Shots Fired 474 | . 48 35 . . 329 62 Missed 139 | . 11 13 . . 92 23 Hits 335 | . 37 22 . . 237 39 Projectile 335 | . 37 22 . . 237 39 AOE 2 | . . 1 . . 1 . Critical Strikes 6 | . . . . . 6 . Damage Taken 6126 | . 338 355 . . 4749 684 Core 531 | . 48 47 . . 416 20 Absorbed by Shields 231 | . . . . . 231 . Ignored by Resistances 70 | . . . . . 70 . Regen/Repaired (Parts) 30 | . . . . . 30 . Core Remaining (%) 73 | 100 . . . 62 58 . Volleys Fired 251 | . 42 78 2 . 119 10 Largest 4 | . 2 2 1 . 4 4 Hottest 215 | . 80 120 33 . 215 164 Shots Fired 483 | . 84 97 2 . 263 37 Gun 298 | . 48 . . . 213 37 Cannon 182 | . 36 97 2 . 47 . Launcher 3 | . . . . . 3 . Special . | . . . . . . . Kinetic 314 | . 42 73 2 . 167 30 Thermal 87 | . 36 24 . . 20 7 Explosive 3 | . . . . . 3 . Electromagnetic 79 | . 6 . . . 73 . Robot Hit Streak 10 | . 10 6 2 . 9 5 Robot Miss Streak 5 | . 3 2 1 . 4 5 Penetration Max 1 | . . . . . 1 1 Secondary Targets 6 | . . . . . 5 1 Max Gunslinging Chain 1 | . . . . . 1 1 Shots Hit Robots 226 | . 45 12 1 . 146 22 Core Hits 112 | . 23 6 1 . 65 17 Critical Kills 1 | . . . . . . 1 Critical Parts Destroyed 1 | . . . . . 1 . Critical Strikes 4 | . . . . . 3 1 Burn 1 | . . . . . 1 . Destroy 2 | . . . . . 1 1 Corrupt 1 | . . . . . 1 . Melee Attacks . | . . . . . . . Impact . | . . . . . . . Slashing . | . . . . . . . Piercing . | . . . . . . . Sneak Attacks . | . . . . . . . Combat Hostiles . | . . . . . . . Follow-up Attacks . | . . . . . . . Damage Inflicted 4485 | . 703 221 22 . 3027 512 Guns 3228 | . 284 . . . 2432 512 Cannons 1082 | . 419 221 22 . 420 . Explosions 175 | . . . . . 175 . Melee . | . . . . . . . Ramming . | . . . . . . . Kinetic 2420 | . 252 98 22 . 1711 337 Thermal 1081 | . 419 123 . . 364 175 Explosive 93 | . . . . . 93 . Electromagnetic 891 | . 32 . . . 859 . Impact . | . . . . . . . Slashing . | . . . . . . . Piercing . | . . . . . . . Highest Corruption 12 | . . . . . 12 . Average Corruption 9 | . . . . . 9 . Corruption Purged . | . . . . . . . Corruption Blocked . | . . . . . . . Effects 41 | . . . . . 41 . Message Errors 9 | . . . . . 9 . Matter Fused 3 | . . . . . 3 . Heat Flow Errors 6 | . . . . . 6 . Energy Discharges 4 | . . . . . 4 . Parts Fused 1 | . . . . . 1 . Data Loss (minor) 4 | . . . . . 4 . Data Loss (major) 1 | . . . . . 1 . Misfires 5 | . . . . . 5 . Alerts 2 | . . . . . 2 . Misdirections 1 | . . . . . 1 . Weapon Failures 5 | . . . . . 5 . Overload Shots . | . . . . . . . Overflow Damage 12 | . . . . . 12 . Projectiles . | . . . . . . . Explosions 12 | . . . . . 12 . Melee . | . . . . . . . Knockbacks 1 | . . . . . 1 . Impact . | . . . . . . . Kinetic 1 | . . . . . 1 . Secondary . | . . . . . . . Self-Inflicted Damage 37 | . . . . . 37 . Shots 2 | . . . . . 2 . Rammed . | . . . . . . . Targets Rammed . | . . . . . . . Kicked . | . . . . . . . Crushed . | . . . . . . . Highest Temperature 212 | . 204 18 . . 212 110 Average Temperature 75 | . 50 12 . . 88 43 Received Heat Transfer 604 | . 90 75 . . 439 . Siege Activations . | . . . . . . . Martial Activations . | . . . . . . . Shielding Activations . | . . . . . . . Robots Disrupted . | . . . . . . . Combat Hostiles . | . . . . . . . Robots Corrupted 3 | . . . . . 3 . Combat Hostiles 3 | . . . . . 3 . Parts Fried 11 | . . . . . 11 . Impact Corruptions . | . . . . . . . Robots Melted . | . . . . . . . Combat Hostiles . | . . . . . . . Parts Melted 1 | . . . . . 1 . Heat Transferred 2275 | . 888 259 . . 728 400 Parts Sabotaged . | . . . . . . . Parts Stolen . | . . . . . . . Parts Stripped . | . . . . . . . Power Chain Reactions 1 | . . . . . 1 . Alert | -11 -10 -10 -7 -7 -5 -4 ------- Run | Yrd Mat Sub Rec Scr Fac Fac Maximum Alert Level 2 | . . . . . 2 1 Low Security (%) 84 | 100 100 . 100 . 75 63 Level 1 9 | . . . . . 12 36 Level 2 5 | . . . . . 11 . Level 3 . | . . . . . . . Level 4 . | . . . . . . . Level 5 . | . . . . . . . High Security . | . . . . . . . Max Security . | . . . . . . . Peak Influence 539 | . 112 . 26 . 539 257 Initial 257 | . . . . . . 257 Average 88 | . 45 . 5 . 112 185 Influence Increases 1974 | . 363 227 56 . 1250 78 Destroy 0b10 Robot/C 1200 | . 260 180 40 . 680 40 Destroy 0b10 Robot/NC 95 | . 30 . 5 . 40 20 Destroy Leader 240 | . 56 10 . . 162 12 Allied During Kill 98 | . . 22 11 . 65 . Disable Machine 90 | . 15 . . . 75 . Destroy Structure 236 | . 2 . . . 228 6 Lose Combat Pursuer 15 | . . 15 . . . . Influence Decreases 1869 | . 331 259 56 . 723 500 Entered New Map 286 | . . 16 . . . 270 Time Decay 1068 | . 331 183 54 . 340 160 Lost Part 373 | . . 20 . . 303 50 Lost Ally 142 | . . 40 2 . 80 20 Squads Dispatched 15 | . 2 . . . 13 . Investigation 3 | . 1 . . . 2 . Extermination 2 | . . . . . 2 . Reinforcement 7 | . 1 . . . 6 . Assault . | . . . . . . . Garrison 3 | . . . . . 3 . Intercept . | . . . . . . . Searches Triggered . | . . . . . . . Construction Impeded 1 | . . . . . 1 . Haulers Reinforced 2 | . . . . . 2 . Active Scanning Responses . | . . . . . . . Cargo Convoy Interrupts 1 | . . . . . 1 . Stealth | -11 -10 -10 -7 -7 -5 -4 --------- Run | Yrd Mat Sub Rec Scr Fac Fac Distress Signals 2 | . . . . . 2 . Communications Jammed 7 | . . . . . . 7 Distress Signals 7 | . . . . . . 7 Times Spotted 79 | . 18 15 . . 39 7 Peak Tracking Total 6 | . 4 4 . . 6 4 Tactical Retreats 1 | . . 1 . . . . Traps | -11 -10 -10 -7 -7 -5 -4 ------- Run | Yrd Mat Sub Rec Scr Fac Fac Traps Triggered 6 | . 2 1 . . 1 2 Indirectly . | . . . . . . . Trap Hack Attempts . | . . . . . . . Triggered . | . . . . . . . Disarmed . | . . . . . . . Reprogrammed . | . . . . . . . Reused . | . . . . . . . Traps Extracted . | . . . . . . . Installed . | . . . . . . . Triggered . | . . . . . . . Machines | -11 -10 -10 -7 -7 -5 -4 ---------- Run | Yrd Mat Sub Rec Scr Fac Fac Machines Disabled 9 | . 1 3 . . 5 . Max in Single Turn 1 | . 1 1 . . 1 . Garrison Access 1 | . . . . . 1 . Machines Repaired . | . . . . . . . Machines Dismantled . | . . . . . . . Machines Sabotaged . | . . . . . . . Overloaded Fab Kills . | . . . . . . . Hacking | -11 -10 -10 -7 -7 -5 -4 --------- Run | Yrd Mat Sub Rec Scr Fac Fac Machines Accessed 5 | . . 1 . 2 2 . Terminals . | . . . . . . . Fabricators . | . . . . . . . Repair Stations . | . . . . . . . Recycling Units 1 | . . . . . 1 . Scanalyzers . | . . . . . . . Garrison Access 1 | . . . . . 1 . Total Hacks 9 | . . 1 . 5 3 . Successful 8 | . . 1 . 5 2 . Failed 1 | . . . . . 1 . Catastrophic . | . . . . . . . Database Lockouts . | . . . . . . . Manual 2 | . . . . . 2 . Terminals . | . . . . . . . Fabricators . | . . . . . . . Repair Stations . | . . . . . . . Recycling Units 2 | . . . . . 2 . Scanalyzers . | . . . . . . . Garrison Access 1 | . . . . . 1 . Terminal Hacks 6 | . . 1 . 5 . . Record 4 | . . . . 4 . . Proto ID Catalog 2 | . . 1 . 1 . . Fabricator Hacks . | . . . . . . . Repair Station Hacks . | . . . . . . . Recycling Unit Hacks . | . . . . . . . Scanalyzer . | . . . . . . . Garrison Access Hacks 1 | . . . . . 1 . Seal Access 1 | . . . . . 1 . Unauthorized Hacks 1 | . . . . . 1 . Terminals . | . . . . . . . Fabricators . | . . . . . . . Repair Stations . | . . . . . . . Recycling Units 1 | . . . . . 1 . Scrapoids 1 | . . . . . 1 . Scanalyzers . | . . . . . . . Garrison Access . | . . . . . . . Data Cores Recovered . | . . . . . . . Used . | . . . . . . . Hacking Detections 1 | . . . . . 1 . Full Trace Events . | . . . . . . . Feedback Events . | . . . . . . . Feedback Blocked . | . . . . . . . Robot Schematics Acquired . | . . . . . . . Robots Built . | . . . . . . . Authchips . | . . . . . . . Time . | . . . . . . . Total Robot Build Rating . | . . . . . . . Part Schematics Acquired . | . . . . . . . Parts Built . | . . . . . . . Authchips . | . . . . . . . Time . | . . . . . . . Total Part Build Rating . | . . . . . . . Parts Repaired . | . . . . . . . Time . | . . . . . . . Parts Recycled . | . . . . . . . Recycled Matter . | . . . . . . . Retrieved Matter . | . . . . . . . Retrieved Components . | . . . . . . . Parts Scanalyzed . | . . . . . . . Part Schematics Acquired . | . . . . . . . Parts Damaged . | . . . . . . . Bothacking | -11 -10 -10 -7 -7 -5 -4 ------------ Run | Yrd Mat Sub Rec Scr Fac Fac Used RIF Installer . | . . . . . . . Robots Hacked . | . . . . . . . Non-combat . | . . . . . . . Combat . | . . . . . . . Robot Hacks Applied . | . . . . . . . Relay Couplers Released . | . . . . . . . Fabnet Peak Effective % . | . . . . . . . Robots Rewired . | . . . . . . . Allies Hacked . | . . . . . . . Hacks Repelled . | . . . . . . . Allies | -11 -10 -10 -7 -7 -5 -4 -------- Run | Yrd Mat Sub Rec Scr Fac Fac Total Allies 17 | . . 11 . . 6 . Largest Group 5 | . . 5 5 4 5 1 Highest-Rated Group 235 | . . 95 95 76 235 65 Highest-Rated Ally 65 | . . 19 19 19 65 65 Total Orders . | . . . . . . . Ally Attacks 146 | . . 32 6 . 100 8 Total Damage 4042 | . . 498 102 . 3214 228 Kills 29 | . . 9 2 . 17 1 Allies Corrupted . | . . . . . . . Allies Melted . | . . . . . . . Intel | -11 -10 -10 -7 -7 -5 -4 ------- Run | Yrd Mat Sub Rec Scr Fac Fac Active Infowar (turns) 1383 | . . . . . 1076 307 IFF 494 | . . . . . 494 . Seismic 960 | . . . . . 960 . Jamming 307 | . . . . . . 307 Robot Analysis Total . | . . . . . . . Derelict Logs Recovered 5 | . . 3 . 2 . . Drone Launches . | . . . . . . . Drone Recoveries . | . . . . . . . Exploration | -11 -10 -10 -7 -7 -5 -4 ------------- Run | Yrd Mat Sub Rec Scr Fac Fac Turns Passed 9307 | 79 1000 3793 233 2304 1573 325 Spaces Moved 4286 | 44 367 1788 105 1057 721 204 Core 1 | 1 . . . . . . Treads 429 | 43 367 19 . . . . Legs . | . . . . . . . Wheels 3856 | . . 1769 105 1057 721 204 Hover . | . . . . . . . Flight . | . . . . . . . Fastest Speed 50 | 50 160 200 200 200 110 140 Average Speed 195 | 157 234 201 200 214 153 140 Slowest Speed 380 | 160 320 320 200 380 245 140 Overloaded Moves . | . . . . . . . Propulsion Burnouts . | . . . . . . . Robots Hopped . | . . . . . . . Potential Cave-ins 2 | . . . . . 2 . Cave-ins Triggered . | . . . . . . . Exploration Rate (%) 38 | 3 69 90 23 64 17 6 Regions Visited 6 Branch Regions 3 Pre-discovered Areas 1 | . . 1 . . . . Known Exits Taken 1 | . . 1 . . . . Unknown Exits Taken 5 | 1 1 . 1 1 1 . Scrap Searched 14 | . . 11 . 3 . . Spaces Dug 5 | . . . . . 5 . Terrain Destroyed 27 | . . . . . 27 . Melee . | . . . . . . . Projectile 15 | . . . . . 15 . AOE 11 | . . . . . 11 . Terrain Rammed . | . . . . . . . Walls Destroyed . | . . . . . . . Machines Disabled . | . . . . . . . Actions | -11 -10 -10 -7 -7 -5 -4 --------- Run | Yrd Mat Sub Rec Scr Fac Fac Total 4812 | 51 423 1884 126 1105 991 232 Wait 28 | . 1 . 19 . 8 . Move 4280 | 43 366 1787 104 1056 720 204 Hop . | . . . . . . . Pick Up 110 | 2 10 13 . 31 48 6 Fast Attach 31 | 6 2 . 1 1 18 3 Attach 46 | . . 2 . 1 39 4 Detach 5 | . . . . 1 4 . Swap 19 | . 1 3 . 2 12 1 Drop 41 | . 1 1 . 13 22 4 Fire 251 | . 42 78 2 . 119 10 Melee . | . . . . . . . Ram . | . . . . . . . Kick . | . . . . . . . Crush . | . . . . . . . Escape Stasis . | . . . . . . . Rewire 1 | . . . . . 1 . Trap . | . . . . . . . Miscellaneous . | . . . . . . . Route ------- -11/Scrapyard -10/Materials (discovered 4 exits: [*Mat x2] / [*Min] / *Sub) -10/Subcaves (discovered 3 exits: [*Mat x2] / *Rec) -7/Recycling -7/Scraptown -5/Factory -4/Factory (discovered 1 exit: [*Ext]) History --------- Turn | Location | Event 7 | -11/Scrapyard | Discovered new exit (range 15) 80 | -11/Scrapyard | Entered Materials 297 | -10/Materials | Discovered new exit (range 15) 309 | -10/Materials | Build established: Mutant 602 | -10/Materials | Discovered new exit (range 13) 1048 | -10/Materials | Discovered new exit (range 14) 1064 | -10/Materials | Discovered new exit (range 7) 1080 | -10/Materials | Entered Subcaves 1209 | -10/Subcaves | Ambushed by angry Subdweller bent on revenge 1266 | -10/Subcaves | A swath of the cavern ceiling suddenly collapsed 1535 | -10/Subcaves | Visited triangular shrine 1547 | -10/Subcaves | Found Prototype Device 1548 | -10/Subcaves | Identified V3-11A's Pendant 1551 | -10/Subcaves | Learned location of Zion (-7) 1553 | -10/Subcaves | Befriended Subdweller 1613 | -10/Subcaves | Befriended Subdweller 1833 | -10/Subcaves | Befriended Subdweller 1913 | -10/Subcaves | Identified exit to Recycling 1914 | -10/Subcaves | Shifting Twisted Machinery released Mak. Power Source 1992 | -10/Subcaves | Shifting Twisted Machinery released Mak. Hacking Suite 2002 | -10/Subcaves | Shifting Twisted Machinery released Sub. Optics 2468 | -10/Subcaves | Befriended Subdweller 2517 | -10/Subcaves | Disturbed a concealed Subdweller 2518 | -10/Subcaves | Befriended Subdweller 2760 | -10/Subcaves | Learned Materials stockpile data 2888 | -10/Subcaves | Disturbed a concealed Subdweller 2888 | -10/Subcaves | Befriended Subdweller 3013 | -10/Subcaves | Befriended Subdweller 3018 | -10/Subcaves | Befriended Subdweller 3696 | -10/Subcaves | Ambushed by Subdweller buried in earth 3698 | -10/Subcaves | Befriended Subdweller 3873 | -10/Subcaves | Shifting Twisted Machinery released Piercing Trap 4223 | -10/Subcaves | Shifting Twisted Machinery released Mak. Light Armor Plating 4403 | -10/Subcaves | Befriended Subdweller 4403 | -10/Subcaves | Befriended Subdweller 4451 | -10/Subcaves | Visited 4L-MR0's lab 4468 | -10/Subcaves | Found Arachnoskeleton 4525 | -10/Subcaves | Discovered new exit (range 16) 4549 | -10/Subcaves | Discovered new exit (range 6) 4873 | -10/Subcaves | Entered Recycling 4873 | -7/Recycling | Accompanied by 5 allies 5035 | -7/Recycling | Scanned before Scraplab entrance 5063 | -7/Recycling | Entered Scraplab 5081 | -7/Recycling | Discovered new exit (range 3) 5106 | -7/Recycling | Entered Scraptown 5106 | -7/Scraptown | Accompanied by 4 allies 5183 | -7/Scraptown | Heard Great Nut preacher, LISTEN AND RECITE! 5291 | -7/Scraptown | Visited Junk Repository 5341 | -7/Scraptown | Visited UFD Registry 5341 | -7/Scraptown | Registered with UFD as "Fibercase" 5463 | -7/Scraptown | Scanned Subdweller tech in exchange for log data 5473 | -7/Scraptown | Learned location of 2 exits from Proximity Caves 5655 | -7/Scraptown | Delivered V3-11A's Pendant to T0-NE2 in exchange for information 5857 | -7/Scraptown | Visited Science Guys 5935 | -7/Scraptown | Visited Analyses Database 5969 | -7/Scraptown | Visited Scrapoid Pod Storage 5995 | -7/Scraptown | Visited Scrapoid Research Area 6023 | -7/Scraptown | Visited Botcube Research 6059 | -7/Scraptown | Visited Curators Association 6097 | -7/Scraptown | Visited Junk Repository 6297 | -7/Scraptown | Delivered Scrap Shield to a Scientist 6568 | -7/Scraptown | Visited Scrap Suit Storage 6577 | -7/Scraptown | Found Scrap Suit 6638 | -7/Scraptown | Visited Abandonware Association 6661 | -7/Scraptown | Build established: Hauler-Mutant 6663 | -7/Scraptown | Learned abandonware demo "SHUTEYE.EXE" 6714 | -7/Scraptown | Visited DA-N13 Charitable Foundation 6723 | -7/Scraptown | Found DCF Scrap (30 items) 7019 | -7/Scraptown | Found Botcube 7071 | -7/Scraptown | Found Scrapoid Pod 7267 | -7/Scraptown | Met Optimus 7267 | -7/Scraptown | Accepted into 0bPrime 7403 | -7/Scraptown | Discovered new exit (range 3) 7410 | -7/Scraptown | Entered Factory 7410 | -5/Factory | Accompanied by 4 allies 7410 | -5/Factory | Evolved 10 slots: Power x1, Utility x7, Weapon x2 7651 | -5/Factory | Lost 4 allies 7824 | -5/Factory | Build established: Derelict-Tank 7953 | -5/Factory | Lost 4 parts (1p1n1u1w) 8201 | -5/Factory | Lost 3 parts (1p1n1u) 8266 | -5/Factory | Lost 3 parts (3w) 8442 | -5/Factory | Scrapoids reinforcements arrived? 8513 | -5/Factory | Garrison activated, responded to threat 8526 | -5/Factory | System corruption reached 10% 8547 | -5/Factory | Lost 5 allies 8549 | -5/Factory | Botcube activated 8563 | -5/Factory | Botcube completed mutation into wheeled form, armed with 2 guns. 8569 | -5/Factory | Noticed UFD Elites at a Recycling Unit 8570 | -5/Factory | Found Scrap Suit 8592 | -5/Factory | Lost 17 parts (2p2n4u9w) 8705 | -5/Factory | Cargo convoy interrupted 8796 | -5/Factory | Discovered new exit (range 6) 8949 | -5/Factory | Lost 3 parts (1n2u) 8983 | -5/Factory | Entered another Factory area 8983 | -4/Factory | Accompanied by 1 ally 8983 | -4/Factory | Evolved 2 slots: Utility x2 9193 | -4/Factory | Discovered new exit (range 4) 9197 | -4/Factory | Spotted B-86 Titan 9308 | -4/Factory | Self-destructed Last Messages --------------- 09301_ U-05 Engineer lays Concrete. 09302_ Slug penetrates Wall. 09302_ U-05 Engineer lays Concrete. 09303_ Penetrated by Slug. 09303_ Slug penetrates Wall. 09303_ U-05 Engineer lays Concrete. 09303_ K-01 Serf collects debris. 09304_ Wall collapses. 09304_ U-05 Engineer builds a Wall. 09305_ K-01 Serf collects debris. 09305_ U-05 Engineer lays Concrete. 09306_ Slug penetrates H-77 Assassin. 09306_ R-10 Processor suffers critical hit (Destroy). 09306_ R-10 Processor destroyed. 09306_ U-05 Engineer lays Concrete. 09306_ Penetrated by Slug. 09306_ Adv. Cooling System destroyed. 09306_ K-01 Serf cleans the Nuclear Reactor. 09306_ Ovr. Huge Scrapsphere destroyed. 09306_ U-05 Engineer lays Concrete. Map ----- +----------------------------------------------------+ | ??????????????????????? #???????????????????????? | | ??????????????????????? #???????????????????????? | | ???????????????????????# #???????????????????????? | | ???????????????????????# #???????????????????????? | | ??????????????????????## ##??#???????????????????? | | ????????????????? ??# !## ### #??????????????? | | ?????????????###? ??#!< ?????????????????? | | ?????????????? ??# #??? ?????????????????? | | ?????????????? ??## ##?? ????? ???????????? | | ??????????????? ???# #?? ?? ? #??????????? | | ???????????????""" ####+###+## %=! #??????????? | | ???????????????""" # # !! #??????????? | | ??????????#??? """ + # % #??????????? | | ??????????? # # #??????????? | | ??????????? """ # ! """ # #??????????? | | ??????????? """ # """ # !% +??????????? | | ??????????# """ # """ #" #??????????? | | ??????????# k # #"F #??????????? | | ??????????# u +########""" ###+#??????? | | ??????????# u k ########"""% = ###????? | | ?????????## u ## %[ *% +???? | | ?????# u u u R =% ###???????? | | ???? ==*############+#######????? | | ?????? =%h##??????? #???? | | ?????###+## !!h;###### #???? | | ??????????# @ + #???? | | ??????????# ###### #???? | | ??????????+ ## ## #??????? #???? | | ??????????### ##### #????????? ????? | | ????????????#?????# #???????????#######????? | | ??????????????????# #??????????????????????? | | ??????????????????# #???? #????????????????? | | ?????????#????????# ^ #?? #????????????????? | | ????????? ???????## ^ # #????????????????? | | ???????? ????+ / #????????????????? | | ???????? ????########## # #????????????????? | | ????????" "?????????????# # #????????????????? | | ??# ????" "????#????????# #? #????????????????? | | ??# """ """ #?????#### ###########+##?????????? | | ??# #?????# ????????? | | ??# """ """ #?????# ????????? | | ??# """ """ #?????# ????????? | | ??? """ """ #?????# ????????? | | ????? ???????# ????????? | | ??????? ?????????# ######?????????? | | #########+############ #??????????????? | | #??????????????? | | #??????????????? | | +??????????????? | | #??????????????? | +----------------------------------------------------+ Best States ------------- Heat Dissipation 74 Coolant Potential 260 Energy Generation 35 Energy Capacity 540 Matter Stores 300 Matter Capacity 300 Sight Range 16 Terrain Scan Density 10 Jamming Range 14 Armor Coverage 600 Resistance: TH 25 Weapon Cycling 30 Evasion (%) 40 Recoil Reduction 2 Offensive Hacking 11 Defensive Hacking 12 Item Schematics ----------------- None Robot Schematics ------------------ None Fabricated ------------ Nothing Repaired ---------- Nothing Alien Tech Used ----------------- None Achievements -------------- None Challenges ------------ None Game ------ Seed ScanActuatorRedistributor Manual? 0 Play Time 00:40:02 Cumulative 329.1 hours Start 2025.06.22 @ 17:08:40 End 2025.06.22 @ 19:59:56 Sessions 2 Manual Loads 0 Difficulty Rogue Special Mode None Game No. 315 Rogue 279 Adventurer 36 Explorer 0 Win Type - Total 11 Types 4/0/7/0/0/0/0/0/0/0 Lore% 69 Gallery% 81 Achievement% 74 Wizard Run 0 Options --------- Layout 0 ASCII 0 Keyboard 0 Movement Mouse Keybinds 0 Fullscreen 1 Font 18/SmallcapsGlow Map View 76x50 Zoom Use 0% Tactical HUD 1 Map Filters NONE Filters NONE Steam 1 RUN: cd78a8e1-31e1-4cd9-b390-da7fa75d20ee